fUST/lending_fUST_20250220
["ID","MTS","AMOUNT","RATE_DAILY","PERIOD"]
[353647218,1739981442992,-1004.75,0.0001452,2]
[353647221,1739981443002,-503.49,0.0001452,2]
[353647225,1739981443011,-930.98,0.0001452,2]
[353647228,1739981443021,-332.09,0.0001452,2]
[353647230,1739981443030,-12799.82,0.0001452,2]
[353647233,1739981443039,-611.34,0.0001452,2]
[353647235,1739981443049,-1313.23,0.0001452,2]
[353647238,1739981443059,-500.0,0.0001452,2]
[353647241,1739981443068,-3922.73,0.0001452,2]
[353647244,1739981443077,-876.01183395,0.00014521,2]
[353647247,1739981443087,-1000.0,0.00014521,2]
[353647251,1739981443096,-1000.0,0.00014521,2]
[353647255,1739981443106,-500.0,0.00014521,2]
[353647259,1739981443115,-1000.0,0.00014521,2]
[353647263,1739981443125,-151.0,0.000146,2]
[353647266,1739981443134,-151.0,0.000146,2]
[353647269,1739981443144,-505.65614959,0.00014602,2]
[353647272,1739981443153,-500.0,0.00014602,2]
[353647274,1739981443163,-500.0,0.00014602,2]
[353647276,1739981443173,-642.50317501,0.00014602,2]
[353647278,1739981443182,-533.48,0.00014602,2]
[353647280,1739981443191,-500.0,0.00014602,2]
[353647282,1739981443200,-500.0,0.00014602,2]
[353647284,1739981443210,-500.0,0.00014602,2]
[353647286,1739981443223,-1437.24,0.00014602,2]
[353647288,1739981443232,-5200.68,0.00014602,2]
[353647290,1739981443242,-944.15,0.00014602,2]
[353647292,1739981443251,-3380.74,0.00014602,2]
[353647294,1739981443262,-1266.51,0.00014602,2]
[353647296,1739981443272,-1004.75,0.00014602,2]
[353647298,1739981443281,-503.49,0.00014602,2]
[353647300,1739981443291,-930.98,0.00014602,2]
[353647302,1739981443302,-12799.82,0.00014602,2]
[353647305,1739981443313,-611.34,0.00014602,2]
[353647306,1739981443322,-1313.23,0.00014602,2]
[353647309,1739981443332,-500.0,0.00014602,2]
[353647311,1739981443341,-3922.73,0.00014602,2]
[353647312,1739981443351,-2223.42860848,0.00014667,2]
[353647314,1739981443361,-587.0,0.00014668,2]
[353647316,1739981443370,-500.0,0.00014684,2]
[353647318,1739981443379,-500.0,0.00014684,2]
[353647320,1739981443389,-533.48,0.00014684,2]
[353647322,1739981443398,-500.0,0.00014684,2]
[353647324,1739981443407,-500.0,0.00014684,2]
[353647327,1739981443417,-500.0,0.00014684,2]
[353647328,1739981443426,-1437.24,0.00014684,2]
[353647330,1739981443435,-5200.68,0.00014684,2]
[353647333,1739981443445,-944.15,0.00014684,2]
[353647335,1739981443454,-3380.74,0.00014684,2]
[353647337,1739981443463,-1266.51,0.00014684,2]
[353647338,1739981443473,-1004.75,0.00014684,2]
[353647340,1739981443482,-503.49,0.00014684,2]
[353647342,1739981443491,-930.98,0.00014684,2]
[353647344,1739981443500,-12799.82,0.00014684,2]
[353647346,1739981443510,-611.34,0.00014684,2]
[353647348,1739981443519,-1313.23,0.00014684,2]
[353647351,1739981443529,-500.0,0.00014684,2]
[353647353,1739981443538,-3922.73,0.00014684,2]
[353647355,1739981443548,-151.0,0.000147,2]
[353647357,1739981443559,-151.0,0.000147,2]
[353647359,1739981443569,-151.0,0.000147,2]
[353647361,1739981443579,-1475.44385068,0.00014749,2]
[353647364,1739981443588,-161.03294024,0.00014749,2]
[353647366,1739981443598,-161.03,0.00014749,2]
[353647368,1739981443607,-155.58545062,0.00014749,2]
[353647371,1739981443617,-155.58545062,0.00014749,2]
[353647372,1739981443640,-155.58545062,0.00014749,2]
[353647374,1739981443650,-155.58545062,0.00014749,2]
[353647376,1739981443659,-155.58,0.00014749,2]
[353647378,1739981443669,-850.292,0.0001475,2]
[353647381,1739981443679,-162.05,0.0001475,2]
[353647382,1739981443688,-500.0,0.00014767,2]
[353647384,1739981443698,-342.60586383,0.00014767,2]
[353647386,1739981443707,-533.48,0.00014767,2]
[353647388,1739981443717,-500.0,0.00014767,2]
[353647391,1739981443727,-500.0,0.00014767,2]
[353647393,1739981443736,-366.83745205,0.00014767,2]
[353647395,1739981443746,-1437.24,0.00014767,2]
[353647397,1739981443757,-5200.68,0.00014767,2]
[353647398,1739981443766,-944.15,0.00014767,2]
[353647401,1739981443775,-3380.74,0.00014767,2]
[353647403,1739981443785,-1266.51,0.00014767,2]
[353647405,1739981443795,-1004.75,0.00014767,2]
[353647407,1739981443806,-503.49,0.00014767,2]
[353647409,1739981443815,-930.98,0.00014767,2]
[353647411,1739981443825,-12799.82,0.00014767,2]
[353647413,1739981443834,-611.34,0.00014767,2]
[353647415,1739981443843,-1313.23,0.00014767,2]
[353647417,1739981443852,-500.0,0.00014767,2]
[353647419,1739981443861,-3922.73,0.00014767,2]
[353647421,1739981443871,-151.0,0.000148,2]
[353647423,1739981443880,-7438.69753278,0.00014839,2]
[353647425,1739981443889,-529.64,0.00014849,2]
[353647427,1739981443898,-533.48,0.00014849,2]
[353647429,1739981443909,-500.0,0.00014849,2]
[353647430,1739981443918,-257.27754596,0.00014849,2]
[353647432,1739981443927,-1437.24,0.00014849,2]
[353647435,1739981443936,-5200.68,0.00014849,2]
[353647437,1739981443946,-944.15,0.00014849,2]
[353647439,1739981443955,-3380.74,0.00014849,2]
[353647441,1739981443965,-1266.51,0.00014849,2]
[353647443,1739981443974,-1004.75,0.00014849,2]
[353647445,1739981443984,-503.49,0.00014849,2]
[353647447,1739981443993,-930.98,0.00014849,2]
[353647448,1739981444002,-12799.82,0.00014849,2]
[353647450,1739981444011,-611.34,0.00014849,2]
[353647452,1739981444021,-1313.23,0.00014849,2]
[353647454,1739981444030,-347.53,0.00014849,2]
[353647456,1739981444039,-500.77851559,0.00014873,2]
[353647459,1739981444049,-500.0,0.00014873,2]
[353647461,1739981444058,-501.04723278,0.00014873,2]
[353647463,1739981444068,-273.09137782,0.00014873,2]
[353647465,1739981444077,-500.39970858,0.00014873,2]
[353647467,1739981444086,-635.95312818,0.00014873,2]
[353647469,1739981444096,-500.0,0.00014873,2]
[353647471,1739981444105,-500.0,0.00014873,2]
[353647473,1739981444114,-500.0,0.00014873,2]
[353647475,1739981444123,-500.0,0.00014873,2]
[353647476,1739981444132,-160.04038112,0.00014873,2]
[353647478,1739981444141,-500.0,0.00014873,2]
[353647481,1739981444150,-500.0,0.00014873,2]
[353647483,1739981444161,-500.0,0.00014873,2]
[353647485,1739981444170,-500.0,0.00014873,2]
[353647486,1739981444180,-500.0,0.00014873,2]
[353647489,1739981444190,-431.13927372,0.00014873,2]
[353647491,1739981444199,-163.32279024,0.00014873,2]
[353647493,1739981444209,-500.0,0.00014873,2]
[353647495,1739981444220,-500.0,0.00014873,2]
[353647497,1739981444230,-261.70172979,0.00014873,2]
[353647499,1739981444239,-151.0,0.000149,2]
[353647501,1739981444249,-427530.113236,0.000149,2]
[353647503,1739981444259,-150.29741089,0.00014913,2]
[353647505,1739981444269,-150.29741089,0.00014913,2]
[353647507,1739981444279,-150.29741089,0.00014913,2]
[353647509,1739981444289,-150.29741089,0.00014913,2]
[353647511,1739981444298,-150.29,0.00014913,2]
[353647512,1739981444311,-151.26363254,0.00014913,2]
[353647514,1739981444321,-151.26363254,0.00014913,2]
[353647516,1739981444329,-151.26363254,0.00014913,2]
[353647518,1739981444339,-151.26363254,0.00014913,2]
[353647520,1739981444348,-151.26363254,0.00014913,2]
[353647522,1739981444356,-151.26363254,0.00014913,2]
[353647524,1739981444366,-151.26363254,0.00014913,2]
[353647526,1739981444375,-151.26363254,0.00014913,2]
[353647528,1739981444384,-151.26363254,0.00014913,2]
[353647530,1739981444393,-151.26363254,0.00014913,2]
[353647532,1739981444402,-151.26363254,0.00014913,2]
[353647534,1739981444411,-151.26,0.00014913,2]
[353647536,1739981444420,-533.48,0.00014931,2]
[353647538,1739981444429,-500.0,0.00014931,2]
[353647540,1739981444438,-1437.24,0.00014931,2]
[353647542,1739981444447,-5200.68,0.00014931,2]
[353647544,1739981444456,-944.15,0.00014931,2]
[353647546,1739981444465,-3380.74,0.00014931,2]
[353647548,1739981444474,-1266.51,0.00014931,2]
[353647550,1739981444484,-1004.75,0.00014931,2]
[353647552,1739981444493,-503.49,0.00014931,2]
[353647554,1739981444502,-930.98,0.00014931,2]
[353647556,1739981444511,-12799.82,0.00014931,2]
[353647558,1739981444520,-611.34,0.00014931,2]
[353647560,1739981444530,-1313.23,0.00014931,2]
[353647562,1739981444540,-151.0,0.00015,2]
[353647564,1739981444549,-533.48,0.00015013,2]
[353647566,1739981444558,-500.0,0.00015013,2]
[353647568,1739981444567,-1437.24,0.00015013,2]
[353647570,1739981444577,-5200.68,0.00015013,2]
[353647572,1739981444586,-944.15,0.00015013,2]
[353647574,1739981444596,-3380.74,0.00015013,2]
[353647576,1739981444605,-1266.51,0.00015013,2]
[353647578,1739981444614,-1004.75,0.00015013,2]
[353647580,1739981444623,-503.49,0.00015013,2]
[353647582,1739981444632,-930.98,0.00015013,2]
[353647584,1739981444642,-12799.82,0.00015013,2]
[353647586,1739981444651,-611.34,0.00015013,2]
[353647588,1739981444661,-1313.23,0.00015013,2]
[353647599,1739981444762,-465.42968586,0.00015067,2]
[353647601,1739981444772,-160.0,0.00015075,3]
[353647603,1739981444782,-533.48,0.00015095,2]
[353647605,1739981444792,-500.0,0.00015095,2]
[353647607,1739981444802,-1437.24,0.00015095,2]
[353647609,1739981444811,-5200.68,0.00015095,2]
[353647610,1739981444820,-944.15,0.00015095,2]
[353647611,1739981444829,-3380.74,0.00015095,2]
[353647612,1739981444838,-1266.51,0.00015095,2]
[353647613,1739981444847,-1004.75,0.00015095,2]
[353647614,1739981444856,-503.49,0.00015095,2]
[353647615,1739981444865,-930.98,0.00015095,2]
[353647616,1739981444874,-11286.95522009,0.00015095,2]
[353647626,1739981445130,-3922.73,0.00014849,2]
[353647629,1739981445140,-3922.73,0.00014931,2]
[353647630,1739981445149,-3922.73,0.00015013,2]
[353647633,1739981445160,-1512.86477991,0.00015095,2]
[353647635,1739981445170,-611.34,0.00015095,2]
[353647637,1739981445180,-1313.23,0.00015095,2]
[353647639,1739981445189,-3922.73,0.00015095,2]
[353647641,1739981445199,-151.0,0.000151,2]
[353647643,1739981445209,-151.0,0.000151,2]
[353647645,1739981445222,-4603.91170454,0.0001516,2]
[353647647,1739981445231,-533.48,0.00015178,2]
[353647649,1739981445240,-635.70642689,0.00015178,2]
[353647651,1739981445250,-1437.24,0.00015178,2]
[353647653,1739981445260,-5200.68,0.00015178,2]
[353647655,1739981445269,-944.15,0.00015178,2]
[353647657,1739981445279,-3380.74,0.00015178,2]
[353647659,1739981445289,-1266.51,0.00015178,2]
[353647661,1739981445301,-1004.75,0.00015178,2]
[353647663,1739981445311,-503.49,0.00015178,2]
[353647665,1739981445321,-930.98,0.00015178,2]
[353647667,1739981445332,-12799.82,0.00015178,2]
[353647669,1739981445342,-611.34,0.00015178,2]
[353647671,1739981445351,-1313.23,0.00015178,2]
[353647673,1739981445362,-3922.73,0.00015178,2]
[353647675,1739981445371,-533.48,0.0001526,2]
[353647677,1739981445381,-1437.24,0.0001526,2]
[353647679,1739981445391,-5200.68,0.0001526,2]
[353647681,1739981445400,-944.15,0.0001526,2]
[353647683,1739981445410,-3380.74,0.0001526,2]
[353647685,1739981445420,-1266.51,0.0001526,2]
[353647687,1739981445430,-1004.75,0.0001526,2]
[353647689,1739981445441,-503.49,0.0001526,2]
[353647691,1739981445451,-930.98,0.0001526,2]
[353647693,1739981445466,-12799.82,0.0001526,2]
[353647695,1739981445476,-611.34,0.0001526,2]
[353647697,1739981445485,-1313.23,0.0001526,2]
[353647699,1739981445495,-3922.73,0.0001526,2]
[353647701,1739981445505,-533.48,0.00015342,2]
[353647703,1739981445514,-1437.24,0.00015342,2]
[353647705,1739981445523,-5200.68,0.00015342,2]
[353647707,1739981445533,-944.15,0.00015342,2]
[353647709,1739981445542,-3380.74,0.00015342,2]
[353647711,1739981445551,-1266.51,0.00015342,2]
[353647713,1739981445561,-1004.75,0.00015342,2]
[353647715,1739981445570,-503.49,0.00015342,2]
[353647717,1739981445580,-930.98,0.00015342,2]
[353647718,1739981445589,-12799.82,0.00015342,2]
[353647721,1739981445599,-611.34,0.00015342,2]
[353647722,1739981445608,-1313.23,0.00015342,2]
[353647725,1739981445618,-3922.73,0.00015342,2]
[353647727,1739981445628,-151.0,0.000154,2]
[353647729,1739981445637,-184.97113629,0.00015421,2]
[353647731,1739981445647,-1000.0,0.00015421,2]
[353647733,1739981445656,-1000.0,0.00015421,2]
[353647735,1739981445666,-1000.0,0.00015421,2]
[353647736,1739981445675,-1001.30101814,0.00015421,2]
[353647739,1739981445685,-572.78652871,0.00015421,2]
[353647741,1739981445695,-500.0,0.00015421,2]
[353647742,1739981445704,-533.48,0.00015424,2]
[353647744,1739981445713,-1437.24,0.00015424,2]
[353647746,1739981445723,-5200.68,0.00015424,2]
[353647748,1739981445732,-944.15,0.00015424,2]
[353647750,1739981445742,-3380.74,0.00015424,2]
[353647752,1739981445751,-1266.51,0.00015424,2]
[353647754,1739981445761,-1004.75,0.00015424,2]
[353647757,1739981445770,-503.49,0.00015424,2]
[353647759,1739981445780,-930.98,0.00015424,2]
[353647760,1739981445789,-12799.82,0.00015424,2]
[353647762,1739981445799,-611.34,0.00015424,2]
[353647765,1739981445814,-1313.23,0.00015424,2]
[353647767,1739981445826,-3922.73,0.00015424,2]
[353647768,1739981445836,-4603.91170454,0.00015464,2]
[353647770,1739981445845,-533.48,0.00015506,2]
[353647773,1739981445857,-1437.24,0.00015506,2]
[353647775,1739981445868,-5200.68,0.00015506,2]
[353647776,1739981445878,-944.15,0.00015506,2]
[353647779,1739981445888,-3380.74,0.00015506,2]
[353647781,1739981445897,-1266.51,0.00015506,2]
[353647783,1739981445907,-1004.75,0.00015506,2]
[353647784,1739981445916,-503.49,0.00015506,2]
[353647787,1739981445926,-930.98,0.00015506,2]
[353647788,1739981445935,-12799.82,0.00015506,2]
[353647790,1739981445945,-611.34,0.00015506,2]
[353647792,1739981445954,-1313.23,0.00015506,2]
[353647794,1739981445964,-3922.73,0.00015506,2]
[353647796,1739981445973,-1500.0,0.00015522,2]
[353647798,1739981445983,-1500.0,0.00015522,2]
[353647801,1739981445993,-1500.0,0.00015522,2]
[353647802,1739981446002,-533.55093691,0.00015589,2]
[353647808,1739981446021,-1437.38982466,0.00015589,2]
[353647811,1739981446031,-5200.73862949,0.00015589,2]
[353647813,1739981446042,-944.36683911,0.00015589,2]
[353647815,1739981446052,-3380.81155046,0.00015589,2]
[353647817,1739981446063,-1266.63749468,0.00015589,2]
[353647819,1739981446072,-1004.77691268,0.00015589,2]
[353647821,1739981446082,-503.54244067,0.00015589,2]
[353647823,1739981446091,-931.06858075,0.00015589,2]
[353647825,1739981446102,-12799.8868,0.00015589,2]
[353647827,1739981446111,-611.41513158,0.00015589,2]
[353647829,1739981446121,-1313.38035416,0.00015589,2]
[353647832,1739981446131,-4603.91170454,0.00015769,2]
[353647834,1739981446141,-336.501628,0.00015775,2]
[353647836,1739981446151,-151.0,0.000158,2]
[353647838,1739981446162,-1000.0,0.00015808,2]
[353647840,1739981446172,-465.02148429,0.0001582,2]
[353647842,1739981446181,-150.0,0.00016,2]
[353647844,1739981446191,-176.20507824,0.0001601,2]
[353647846,1739981446201,-604.0,0.00016048,2]
[353647848,1739981446212,-604.0,0.00016048,2]
[353647850,1739981446223,-604.0,0.00016048,2]
[353647852,1739981446232,-604.0,0.00016048,2]
[353647854,1739981446242,-604.0,0.00016048,2]
[353647856,1739981446251,-604.0,0.00016048,2]
[353647858,1739981446262,-604.0,0.00016048,2]
[353647860,1739981446271,-604.0,0.00016048,2]
[353647862,1739981446281,-604.0,0.00016048,2]
[353647864,1739981446291,-604.0,0.00016048,2]
[353647866,1739981446301,-160.0,0.0001605,4]
[353647868,1739981446310,-709.0,0.0001605,2]
[353647870,1739981446319,-709.0,0.0001605,2]
[353647872,1739981446329,-709.0,0.0001605,2]
[353647874,1739981446339,-709.0,0.0001605,2]
[353647876,1739981446349,-709.0,0.0001605,2]
[353647878,1739981446358,-709.0,0.0001605,2]
[353647880,1739981446367,-709.0,0.0001605,2]
[353647882,1739981446377,-709.0,0.0001605,2]
[353647884,1739981446387,-709.0,0.0001605,2]
[353647886,1739981446396,-709.0,0.0001605,2]
[353647888,1739981446406,-604.0,0.00016071,2]
[353647890,1739981446415,-604.0,0.00016071,2]
[353647892,1739981446425,-604.0,0.00016071,2]
[353647894,1739981446435,-604.0,0.00016071,2]
[353647896,1739981446444,-604.0,0.00016071,2]
[353647898,1739981446454,-604.0,0.00016071,2]
[353647900,1739981446464,-604.0,0.00016071,2]
[353647902,1739981446473,-604.0,0.00016071,2]
[353647904,1739981446483,-604.0,0.00016071,2]
[353647906,1739981446493,-604.0,0.00016071,2]
[353647908,1739981446504,-709.0,0.00016073,2]
[353647911,1739981446514,-709.0,0.00016073,2]
[353647912,1739981446524,-709.0,0.00016073,2]
[353647914,1739981446533,-709.0,0.00016073,2]
[353647916,1739981446543,-709.0,0.00016073,2]
[353647919,1739981446553,-709.0,0.00016073,2]
[353647920,1739981446562,-709.0,0.00016073,2]
[353647923,1739981446572,-709.0,0.00016073,2]
[353647925,1739981446582,-709.0,0.00016073,2]
[353647927,1739981446591,-709.0,0.00016073,2]
[353647929,1739981446601,-709.0,0.00016073,2]
[353647931,1739981446610,-4603.91170454,0.00016073,2]
[353647933,1739981446620,-604.0,0.00016081,2]
[353647935,1739981446629,-604.0,0.00016081,2]
[353647937,1739981446639,-604.0,0.00016081,2]
[353647939,1739981446648,-604.0,0.00016081,2]
[353647941,1739981446657,-604.0,0.00016081,2]
[353647943,1739981446667,-604.0,0.00016081,2]
[353647945,1739981446676,-604.0,0.00016081,2]
[353647947,1739981446687,-604.0,0.00016081,2]
[353647949,1739981446697,-604.0,0.00016081,2]
[353647951,1739981446707,-604.0,0.00016081,2]
[353647953,1739981446716,-604.0,0.00016081,2]
[353647955,1739981446726,-604.0,0.00016081,2]
[353647957,1739981446736,-604.0,0.00016081,2]
[353647959,1739981446745,-604.0,0.00016081,2]
[353647961,1739981446754,-355.163177,0.00016082,2]
[353647963,1739981446763,-355.163177,0.00016082,2]
[353647965,1739981446773,-355.163177,0.00016082,2]
[353647967,1739981446782,-355.163177,0.00016082,2]
[353647969,1739981446792,-355.163177,0.00016082,2]
[353647971,1739981446802,-355.163177,0.00016082,2]
[353647973,1739981446811,-709.0,0.00016084,2]
[353647975,1739981446820,-709.0,0.00016084,2]
[353647977,1739981446829,-709.0,0.00016084,2]
[353647979,1739981446839,-709.0,0.00016084,2]
[353647981,1739981446848,-709.0,0.00016084,2]
[353647994,1739981446858,-709.0,0.00016084,2]
[353647996,1739981446973,-709.0,0.00016084,2]
[353647998,1739981446983,-709.0,0.00016084,2]
[353648000,1739981446993,-709.0,0.00016084,2]
[353648002,1739981447002,-709.0,0.00016084,2]
[353648004,1739981447011,-709.0,0.00016084,2]
[353648006,1739981447021,-709.0,0.00016084,2]
[353648008,1739981447030,-823.0,0.00016099,2]
[353648010,1739981447039,-1475.44385067,0.00016125,2]
[353648012,1739981447049,-499.0,0.00016164,2]
[353648014,1739981447058,-151.0,0.000162,2]
[353648016,1739981447067,-4603.91170454,0.00016378,2]
[353648018,1739981447077,-500.95075043,0.00016422,2]
[353648020,1739981447086,-1500.0,0.00016422,2]
[353648023,1739981447095,-1597.04980234,0.00016422,2]
[353648025,1739981447104,-1000.0,0.00016438,2]
[353648026,1739981447113,-1000.0,0.00016438,2]
[353648029,1739981447123,-397.53754396,0.00016438,2]
[353648031,1739981447131,-151.0,0.000165,2]
[353648032,1739981447141,-575.96854954,0.00016627,2]
[353648035,1739981447150,-4603.91170454,0.00016682,2]
[353648037,1739981447160,-2000.0,0.0001682,2]
[353648038,1739981447169,-644.4288868,0.0001682,2]
[353648041,1739981447179,-151.0,0.000169,2]
[353648043,1739981447188,-4603.91170454,0.00016987,2]
[353648045,1739981447197,-500.0,0.00017,7]
[353648047,1739981447206,-500.0,0.00017,7]
[353648048,1739981447216,-500.0,0.00017,7]
[353648050,1739981447228,-500.0,0.00017,7]
[353648052,1739981447237,-500.0,0.00017,7]
[353648054,1739981447246,-500.0,0.00017,7]
[353648056,1739981447255,-500.0,0.00017,7]
[353648058,1739981447266,-500.0,0.00017,7]
[353648060,1739981447275,-500.0,0.00017,7]
[353648062,1739981447284,-566.69,0.00017,7]
[353648064,1739981447294,-14092.53,0.00017,2]
[353648067,1739981447304,-465.76441583,0.00017012,2]
[353648069,1739981447314,-160.0,0.00017025,5]
[353648071,1739981447323,-851.3337179,0.00017041,2]
[353648073,1739981447332,-396.0,0.00017177,2]
[353648075,1739981447342,-1000.0,0.00017178,2]
[353648077,1739981447352,-356.8975869,0.00017178,2]
[353648079,1739981447362,-153.0,0.00017178,2]
[353648081,1739981447371,-153.0,0.00017178,2]
[353648083,1739981447380,-154.7376905,0.00017178,2]
[353648085,1739981447389,-154.7376905,0.00017178,2]
[353648087,1739981447399,-153.0,0.00017178,2]
[353648089,1739981447408,-153.0,0.00017178,2]
[353648091,1739981447417,-154.7376905,0.00017178,2]
[353648093,1739981447426,-153.0,0.00017178,2]
[353648095,1739981447435,-154.7376905,0.00017178,2]
[353648097,1739981447445,-153.0,0.00017178,2]
[353648099,1739981447454,-154.7376905,0.00017178,2]
[353648101,1739981447463,-153.0,0.00017178,2]
[353648103,1739981447473,-154.7376905,0.00017178,2]
[353648105,1739981447483,-154.7376905,0.00017178,2]
[353648107,1739981447492,-153.0,0.00017178,2]
[353648109,1739981447501,-151.0,0.000172,2]
[353648111,1739981447510,-3853.1721884,0.00017247,2]
[353648113,1739981447520,-4603.91170454,0.00017291,2]
[353648115,1739981447529,-2500.0,0.00017438,2]
[353648117,1739981447539,-2500.0,0.00017447,2]
[353648119,1739981447548,-2500.0,0.00017456,2]
[353648121,1739981447558,-2500.0,0.00017465,2]
[353648123,1739981447567,-2500.0,0.00017474,2]
[353648125,1739981447577,-2500.0,0.00017482,2]
[353648127,1739981447586,-2500.0,0.00017491,2]
[353648129,1739981447596,-3000.0,0.000175,2]
[353648131,1739981447605,-3000.0,0.000175,2]
[353648133,1739981447615,-2500.0,0.000175,2]
[353648135,1739981447624,-575.96854954,0.000175,2]
[353648137,1739981447634,-1475.44385067,0.000175,2]
[353648140,1739981447653,-13275.53870192,0.00017524,2]
[353648142,1739981447664,-154.65899617,0.00017534,4]
[353648144,1739981447675,-4603.91170454,0.00017596,2]
[353648146,1739981447685,-918.45199171,0.00017599,2]
[353648148,1739981447694,-239.67885829,0.00017599,2]
[353648150,1739981447704,-160.0,0.00017599,2]
[353648152,1739981447713,-160.0,0.00017599,2]
[353648154,1739981447723,-160.0,0.00017599,2]
[353648156,1739981447732,-167011.05456678,0.000176,5]
[353648158,1739981447741,-42550.76321166,0.000176,5]
[353648160,1739981447751,-2000883.27180583,0.000176,5]
[353648163,1739981447762,-720975.88812084,0.000176,5]
[353648172,1739981447845,-75769.27785884,0.000176,5]
[353652682,1739981566721,10000.0,0.00019,120]
[353652684,1739982054703,1000.0,0.00019,120]
[353652685,1739982055789,1000.0,0.00019,120]
[353652687,1739982320679,321.024393,9.041e-05,2]
[353652691,1739982518767,1050.37210985,0.00018056,90]
[353652696,1739982593279,-14141.0,0.0001307,5]
[353652744,1739982632871,-300.0,9.163e-05,2]
[353652745,1739982632881,-2144.0440657,9.164e-05,2]
[353652746,1739982632891,-19002.82143218,9.164e-05,2]
[353652756,1739982638572,-5897.17856782,9.164e-05,2]
[353652758,1739982638582,-420.0,0.0001008,2]
[353652760,1739982638592,-275.40797419,0.0001087,2]
[353652762,1739982638602,-500.0,0.00010956,2]
[353652764,1739982638613,-216.77674912,0.00010956,2]
[353652767,1739982638623,-257.39947795,0.00010956,2]
[353652769,1739982638633,-198.64,0.00010959,2]
[353652771,1739982638642,-205.26,0.00010959,2]
[353652773,1739982638653,-171.05,0.00010959,2]
[353652776,1739982638662,-855.26,0.00010959,2]
[353652779,1739982638671,-587.0,0.00011088,2]
[353652781,1739982638680,-194.9386963,0.00011595,2]
[353652783,1739982638690,-823.0,0.00012196,2]
[353652785,1739982638699,-176.55504155,0.000129,2]
[353652787,1739982638708,-700.0,0.00013068,2]
[353652789,1739982638717,-26795.3096787,0.0001307,5]
[353652791,1739982638726,-1152.0,0.00013416,2]
[353652793,1739982638735,-247.05397378,0.00013558,2]
[353652795,1739982638744,-500.0,0.00013698,2]
[353652797,1739982638753,-500.0,0.00013698,2]
[353652799,1739982638763,-500.0,0.00013698,2]
[353652801,1739982638772,-500.0,0.00013698,2]
[353652803,1739982638782,-500.0,0.00013698,2]
[353652805,1739982638791,-500.0,0.00013698,2]
[353652807,1739982638800,-500.0,0.00013698,2]
[353652809,1739982638810,-500.0,0.00013698,2]
[353652811,1739982638820,-500.0,0.00013698,2]
[353652812,1739982638829,-500.0,0.00013698,2]
[353652814,1739982638839,-500.0,0.00013698,2]
[353652816,1739982638848,-500.0,0.00013698,2]
[353652818,1739982638857,-500.0,0.00013698,2]
[353652820,1739982638867,-500.0,0.00013698,2]
[353652821,1739982638877,-152.0,0.0001377,2]
[353652822,1739982638887,-500.0,0.00013778,2]
[353652823,1739982638896,-500.0,0.00013778,2]
[353652824,1739982638906,-500.0,0.00013778,2]
[353652825,1739982638917,-500.0,0.00013778,2]
[353652826,1739982638927,-500.0,0.00013778,2]
[353652827,1739982638937,-500.0,0.00013778,2]
[353652828,1739982638948,-563.45,0.00013778,2]
[353652829,1739982638957,-500.0,0.00013778,2]
[353652830,1739982638968,-500.0,0.00013778,2]
[353652831,1739982638978,-500.0,0.00013778,2]